fUST/lending_fUST_20250310
["ID","MTS","AMOUNT","RATE_DAILY","PERIOD"]
[355796555,1741567850258,-702.08,0.00058082,120]
[355796556,1741567850267,-661.02,0.00058082,120]
[355796557,1741567850277,-1500.0,0.00058298,14]
[355796558,1741567850288,-500.0,0.00058356,120]
[355796559,1741567850298,-500.0,0.00058356,120]
[355796560,1741567850311,-500.0,0.00058356,120]
[355796561,1741567850323,-500.0,0.00058356,120]
[355796562,1741567850336,-500.0,0.00058356,120]
[355796563,1741567850346,-521.92,0.00058356,120]
[355796564,1741567850356,-623.2,0.00058356,120]
[355796565,1741567850365,-500.0,0.00058356,120]
[355796566,1741567850375,-500.0,0.00058356,120]
[355796567,1741567850385,-210.716242,0.00058356,30]
[355796568,1741567850395,-626.73,0.00058356,120]
[355796569,1741567850404,-210.716242,0.00058356,30]
[355796570,1741567850415,-1005.52,0.00058356,120]
[355796571,1741567850424,-610.16,0.00058356,120]
[355796572,1741567850434,-500.0,0.00058356,120]
[355796573,1741567850444,-500.0,0.00058356,120]
[355796574,1741567850454,-540.66,0.00058356,120]
[355796575,1741567850464,-595.44,0.00058356,120]
[355796576,1741567850474,-701.132744,0.00058356,120]
[355796577,1741567850483,-701.132744,0.00058356,120]
[355796578,1741567850492,-500.0,0.00058356,120]
[355796579,1741567850502,-151.0,0.00058356,120]
[355796580,1741567850512,-1357.25,0.00058356,120]
[355796581,1741567850522,-2110.39,0.00058356,120]
[355796582,1741567850531,-624.58,0.00058356,120]
[355796583,1741567850549,-828.562556,0.00058356,120]
[355796584,1741567850569,-1942.94,0.00058356,120]
[355796585,1741567850579,-828.562556,0.00058356,120]
[355796586,1741567850588,-500.0,0.00058356,120]
[355796587,1741567850597,-2362.94,0.00058356,120]
[355796588,1741567850607,-151.0,0.00058356,10]
[355796589,1741567850616,-802.74,0.00058356,120]
[355796590,1741567850625,-994.75,0.00058356,120]
[355796591,1741567850635,-759.18,0.00058356,120]
[355796592,1741567850644,-2333.05,0.00058356,120]
[355796593,1741567850654,-153.847753,0.00058356,120]
[355796594,1741567850664,-500.0,0.00058356,120]
[355796595,1741567850673,-152.708052,0.00058356,120]
[355796596,1741567850683,-500.0,0.00058356,120]
[355796597,1741567850693,-706.42,0.00058356,120]
[355796598,1741567850702,-519.61,0.00058356,120]
[355796599,1741567850711,-500.0,0.00058356,120]
[355796600,1741567850721,-621.82,0.00058356,120]
[355796601,1741567850731,-702.08,0.00058356,120]
[355796602,1741567850741,-661.02,0.00058356,120]
[355796603,1741567850751,-500.0,0.0005863,120]
[355796604,1741567850760,-358.22,0.0005863,120]
[355796605,1741567850770,-500.72,0.0005863,120]
[355796606,1741567850780,-500.0,0.0005863,120]
[355796607,1741567850789,-500.0,0.0005863,120]
[355796608,1741567850799,-623.2,0.0005863,120]
[355796609,1741567850815,-500.0,0.0005863,120]
[355796610,1741567850825,-500.0,0.0005863,120]
[355796611,1741567850835,-626.73,0.0005863,120]
[355796612,1741567850847,-1005.52,0.0005863,120]
[355796613,1741567850857,-610.16,0.0005863,120]
[355796614,1741567850867,-500.0,0.0005863,120]
[355796615,1741567850878,-594.32,0.0005863,120]
[355796616,1741567850888,-540.66,0.0005863,120]
[355796617,1741567850898,-595.44,0.0005863,120]
[355796618,1741567850909,-500.0,0.0005863,120]
[355796619,1741567850919,-573.755254,0.0005863,120]
[355796620,1741567850928,-573.755254,0.0005863,120]
[355796621,1741567850938,-1357.25,0.0005863,120]
[355796622,1741567850948,-2110.39,0.0005863,120]
[355796623,1741567850958,-624.58,0.0005863,120]
[355796624,1741567850968,-1942.94,0.0005863,120]
[355796625,1741567850978,-500.0,0.0005863,120]
[355796626,1741567850987,-2362.94,0.0005863,120]
[355796627,1741567850997,-802.74,0.0005863,120]
[355796628,1741567851007,-994.75,0.0005863,120]
[355796629,1741567851016,-759.18,0.0005863,120]
[355796630,1741567851026,-2333.05,0.0005863,120]
[355796631,1741567851037,-500.0,0.0005863,120]
[355796632,1741567851047,-500.0,0.0005863,120]
[355796633,1741567851059,-706.42,0.0005863,120]
[355796634,1741567851069,-519.61,0.0005863,120]
[355796635,1741567851095,-500.0,0.0005863,120]
[355796636,1741567851104,-621.82,0.0005863,120]
[355796637,1741567851114,-702.08,0.0005863,120]
[355796638,1741567851123,-661.02,0.0005863,120]
[355796639,1741567851132,-22719.78100053,0.000588,120]
[355796640,1741567851143,-294.13163,0.000588,120]
[355796641,1741567851152,-10000.0,0.000589,30]
[355796642,1741567851162,-50000.0,0.000589,120]
[355796643,1741567851172,-500.0,0.00058904,120]
[355796644,1741567851182,-500.0,0.00058904,120]
[355796645,1741567851191,-767.54256,0.00058904,120]
[355796646,1741567851201,-767.54256,0.00058904,120]
[355796647,1741567851210,-500.0,0.00058904,120]
[355796648,1741567851219,-623.2,0.00058904,120]
[355796649,1741567851228,-500.0,0.00058904,120]
[355796650,1741567851238,-500.0,0.00058904,120]
[355796651,1741567851247,-626.73,0.00058904,120]
[355796652,1741567851257,-1005.52,0.00058904,120]
[355796653,1741567851267,-610.16,0.00058904,120]
[355796654,1741567851277,-645.12,0.00058904,120]
[355796655,1741567851286,-540.66,0.00058904,120]
[355796656,1741567851296,-595.44,0.00058904,120]
[355796657,1741567851305,-500.0,0.00058904,120]
[355796658,1741567851315,-1357.25,0.00058904,120]
[355796659,1741567851325,-2110.39,0.00058904,120]
[355796660,1741567851335,-624.58,0.00058904,120]
[355796661,1741567851345,-1942.94,0.00058904,120]
[355796662,1741567851355,-486.3,0.00058904,120]
[355796663,1741567851364,-2362.94,0.00058904,120]
[355796664,1741567851374,-151.0,0.00058904,10]
[355796665,1741567851384,-802.74,0.00058904,120]
[355796666,1741567851393,-994.75,0.00058904,120]
[355796667,1741567851403,-759.18,0.00058904,120]
[355796668,1741567851413,-2333.05,0.00058904,120]
[355796669,1741567851423,-500.0,0.00058904,120]
[355796670,1741567851433,-500.0,0.00058904,120]
[355796671,1741567851443,-706.42,0.00058904,120]
[355796672,1741567851453,-519.61,0.00058904,120]
[355796673,1741567851463,-394.56,0.00058904,120]
[355796674,1741567851473,-621.82,0.00058904,120]
[355796675,1741567851482,-702.08,0.00058904,120]
[355796676,1741567851492,-661.02,0.00058904,120]
[355796677,1741567851502,-500.0,0.00059178,120]
[355796678,1741567851511,-500.0,0.00059178,120]
[355796679,1741567851521,-500.0,0.00059178,120]
[355796680,1741567851530,-623.2,0.00059178,120]
[355796681,1741567851540,-500.0,0.00059178,120]
[355796682,1741567851549,-500.0,0.00059178,120]
[355796683,1741567851559,-210.716242,0.00059178,30]
[355796684,1741567851569,-626.73,0.00059178,120]
[355796685,1741567851593,-210.716242,0.00059178,30]
[355796686,1741567851603,-1005.52,0.00059178,120]
[355796687,1741567851613,-610.16,0.00059178,120]
[355796688,1741567851623,-540.66,0.00059178,120]
[355796689,1741567851633,-595.44,0.00059178,120]
[355796690,1741567851644,-701.132744,0.00059178,120]
[355796691,1741567851654,-701.132744,0.00059178,120]
[355796692,1741567851665,-500.0,0.00059178,120]
[355796693,1741567851675,-151.0,0.00059178,120]
[355796694,1741567851685,-1357.25,0.00059178,120]
[355796695,1741567851695,-2110.39,0.00059178,120]
[355796696,1741567851705,-624.58,0.00059178,120]
[355796697,1741567851715,-828.562556,0.00059178,120]
[355796698,1741567851725,-1942.94,0.00059178,120]
[355796699,1741567851734,-828.562556,0.00059178,120]
[355796700,1741567851744,-2362.94,0.00059178,120]
[355796701,1741567851754,-802.74,0.00059178,120]
[355796702,1741567851763,-994.75,0.00059178,120]
[355796703,1741567851773,-759.18,0.00059178,120]
[355796704,1741567851782,-2333.05,0.00059178,120]
[355796705,1741567851792,-500.0,0.00059178,120]
[355796706,1741567851803,-500.0,0.00059178,120]
[355796707,1741567851813,-706.42,0.00059178,120]
[355796708,1741567851826,-519.61,0.00059178,120]
[355796709,1741567851836,-621.82,0.00059178,120]
[355796710,1741567851846,-702.08,0.00059178,120]
[355796711,1741567851855,-661.02,0.00059178,120]
[355796712,1741567851867,-500.0,0.00059452,120]
[355796713,1741567851876,-151.0,0.00059452,120]
[355796714,1741567851886,-500.0,0.00059452,120]
[355796715,1741567851896,-151.0,0.00059452,120]
[355796716,1741567851905,-251.18,0.00059452,120]
[355796717,1741567852037,-623.2,0.00059452,120]
[355796718,1741567852047,-500.0,0.00059452,120]
[355796719,1741567852056,-500.0,0.00059452,120]
[355796720,1741567852066,-626.73,0.00059452,120]
[355796721,1741567852081,-1005.52,0.00059452,120]
[355796722,1741567852094,-610.16,0.00059452,120]
[355796723,1741567852104,-151.0,0.00059452,120]
[355796724,1741567852114,-540.66,0.00059452,120]
[355796725,1741567852126,-595.44,0.00059452,120]
[355796726,1741567852136,-500.0,0.00059452,120]
[355796727,1741567852146,-1357.25,0.00059452,120]
[355796728,1741567852156,-2110.39,0.00059452,120]
[355796729,1741567852166,-624.58,0.00059452,120]
[355796730,1741567852176,-1942.94,0.00059452,120]
[355796731,1741567852186,-2362.94,0.00059452,120]
[355796732,1741567852196,-802.74,0.00059452,120]
[355796733,1741567852205,-994.75,0.00059452,120]
[355796734,1741567852214,-759.18,0.00059452,120]
[355796735,1741567852224,-2333.05,0.00059452,120]
[355796736,1741567852233,-500.0,0.00059452,120]
[355796737,1741567852243,-500.0,0.00059452,120]
[355796738,1741567852253,-706.42,0.00059452,120]
[355796739,1741567852263,-519.61,0.00059452,120]
[355796740,1741567852273,-621.82,0.00059452,120]
[355796741,1741567852283,-702.08,0.00059452,120]
[355796742,1741567852293,-661.02,0.00059452,120]
[355796743,1741567852303,-500.0,0.00059726,120]
[355796744,1741567852312,-500.0,0.00059726,120]
[355796745,1741567852322,-623.2,0.00059726,120]
[355796746,1741567852343,-500.0,0.00059726,120]
[355796747,1741567852352,-500.0,0.00059726,120]
[355796748,1741567852362,-626.73,0.00059726,120]
[355796749,1741567852372,-1005.52,0.00059726,120]
[355796750,1741567852383,-610.16,0.00059726,120]
[355796751,1741567852393,-540.66,0.00059726,120]
[355796752,1741567852402,-595.44,0.00059726,120]
[355796753,1741567852411,-500.0,0.00059726,120]
[355796754,1741567852421,-1357.25,0.00059726,120]
[355796755,1741567852432,-2110.39,0.00059726,120]
[355796756,1741567852442,-624.58,0.00059726,120]
[355796757,1741567852451,-1942.94,0.00059726,120]
[355796758,1741567852461,-2362.94,0.00059726,120]
[355796759,1741567852470,-802.74,0.00059726,120]
[355796760,1741567852480,-994.75,0.00059726,120]
[355796761,1741567852489,-759.18,0.00059726,120]
[355796762,1741567852500,-2333.05,0.00059726,120]
[355796763,1741567852510,-618.84,0.00059726,120]
[355796764,1741567852519,-500.0,0.00059726,120]
[355796765,1741567852529,-706.42,0.00059726,120]
[355796766,1741567852539,-519.61,0.00059726,120]
[355796767,1741567852548,-621.82,0.00059726,120]
[355796768,1741567852558,-702.08,0.00059726,120]
[355796769,1741567852568,-661.02,0.00059726,120]
[355796770,1741567852582,-10000.0,0.000598,30]
[355796771,1741567852592,-151.0,0.000598,120]
[355796772,1741567852601,-151.0,0.000598,120]
[355796773,1741567852611,-151.0,0.000598,120]
[355796774,1741567852621,-160.059105,0.000598,120]
[355796775,1741567852630,-160.059105,0.000598,120]
[355796776,1741567852640,-151.0,0.000598,120]
[355796777,1741567852651,-475.565554,0.000598,120]
[355796778,1741567852662,-475.565554,0.000598,120]
[355796779,1741567852672,-500.0,0.00059999,120]
[355796780,1741567852682,-547.66,0.00059999,120]
[355796781,1741567852693,-623.2,0.00059999,120]
[355796782,1741567852703,-351.76,0.00059999,120]
[355796783,1741567852713,-254.8,0.00059999,120]
[355796784,1741567852723,-626.73,0.00059999,120]
[355796785,1741567852732,-1005.52,0.00059999,120]
[355796786,1741567852742,-610.16,0.00059999,120]
[355796787,1741567852752,-540.66,0.00059999,120]
[355796788,1741567852762,-595.44,0.00059999,120]
[355796789,1741567852772,-1357.25,0.00059999,120]
[355796790,1741567852783,-2110.39,0.00059999,120]
[355796791,1741567852793,-624.58,0.00059999,120]
[355796792,1741567852805,-1942.94,0.00059999,120]
[355796793,1741567852816,-2362.94,0.00059999,120]
[355796794,1741567852827,-802.74,0.00059999,120]
[355796795,1741567852843,-994.75,0.00059999,120]
[355796796,1741567852852,-759.18,0.00059999,120]
[355796797,1741567852863,-2333.05,0.00059999,120]
[355796798,1741567852873,-500.0,0.00059999,120]
[355796799,1741567852883,-706.42,0.00059999,120]
[355796800,1741567852892,-519.61,0.00059999,120]
[355796801,1741567852903,-621.82,0.00059999,120]
[355796802,1741567852912,-702.08,0.00059999,120]
[355796803,1741567852922,-661.02,0.00059999,120]
[355796804,1741567852931,-516.74,0.00060273,120]
[355796805,1741567852942,-623.2,0.00060273,120]
[355796806,1741567852951,-626.73,0.00060273,120]
[355796807,1741567852961,-1005.52,0.00060273,120]
[355796808,1741567852970,-610.16,0.00060273,120]
[355796809,1741567852980,-540.66,0.00060273,120]
[355796810,1741567852990,-595.44,0.00060273,120]
[355796811,1741567853001,-1357.25,0.00060273,120]
[355796812,1741567853011,-2110.39,0.00060273,120]
[355796813,1741567853022,-624.58,0.00060273,120]
[355796814,1741567853031,-1942.94,0.00060273,120]
[355796815,1741567853042,-2362.94,0.00060273,120]
[355796816,1741567853053,-802.74,0.00060273,120]
[355796817,1741567853063,-994.75,0.00060273,120]
[355796818,1741567853073,-759.18,0.00060273,120]
[355796819,1741567853091,-2333.05,0.00060273,120]
[355796820,1741567853101,-500.0,0.00060273,120]
[355796821,1741567853111,-706.42,0.00060273,120]
[355796822,1741567853121,-519.61,0.00060273,120]
[355796823,1741567853131,-621.82,0.00060273,120]
[355796824,1741567853143,-702.08,0.00060273,120]
[355796825,1741567853153,-661.02,0.00060273,120]
[355796826,1741567853163,-623.2,0.00060547,120]
[355796827,1741567853174,-626.73,0.00060547,120]
[355796828,1741567853184,-1005.52,0.00060547,120]
[355796829,1741567853195,-610.16,0.00060547,120]
[355796830,1741567853206,-540.66,0.00060547,120]
[355796831,1741567853216,-595.44,0.00060547,120]
[355796832,1741567853226,-1357.25,0.00060547,120]
[355796833,1741567853236,-2110.39,0.00060547,120]
[355796834,1741567853246,-624.58,0.00060547,120]
[355796835,1741567853256,-1942.94,0.00060547,120]
[355796836,1741567853266,-2362.94,0.00060547,120]
[355796837,1741567853276,-802.74,0.00060547,120]
[355796838,1741567853285,-994.75,0.00060547,120]
[355796839,1741567853296,-759.18,0.00060547,120]
[355796840,1741567853306,-2333.05,0.00060547,120]
[355796841,1741567853316,-349.92,0.00060547,120]
[355796842,1741567853330,-706.42,0.00060547,120]
[355796843,1741567853342,-519.61,0.00060547,120]
[355796844,1741567853351,-621.82,0.00060547,120]
[355796845,1741567853361,-702.08,0.00060547,120]
[355796846,1741567853372,-661.02,0.00060547,120]
[355796847,1741567853382,-623.2,0.00060821,120]
[355796848,1741567853393,-626.73,0.00060821,120]
[355796849,1741567853403,-1005.52,0.00060821,120]
[355796850,1741567853414,-610.16,0.00060821,120]
[355796851,1741567853424,-540.66,0.00060821,120]
[355796852,1741567853434,-595.44,0.00060821,120]
[355796853,1741567853444,-1357.25,0.00060821,120]
[355796854,1741567853455,-2110.39,0.00060821,120]
[355796855,1741567853465,-624.58,0.00060821,120]
[355796856,1741567853475,-1942.94,0.00060821,120]
[355796857,1741567853485,-2362.94,0.00060821,120]
[355796858,1741567853495,-802.74,0.00060821,120]
[355796859,1741567853505,-994.75,0.00060821,120]
[355796860,1741567853514,-759.18,0.00060821,120]
[355796861,1741567853524,-2333.05,0.00060821,120]
[355796862,1741567853534,-706.42,0.00060821,120]
[355796863,1741567853543,-519.61,0.00060821,120]
[355796864,1741567853553,-621.82,0.00060821,120]
[355796865,1741567853563,-702.08,0.00060821,120]
[355796866,1741567853572,-661.02,0.00060821,120]
[355796867,1741567853588,-500.0,0.00060852,15]
[355796868,1741567853598,-1000.0,0.00060852,15]
[355796869,1741567853608,-623.26,0.00061095,120]
[355796870,1741567853618,-626.91,0.00061095,120]
[355796871,1741567853628,-1005.52,0.00061095,120]
[355796872,1741567853637,-610.16,0.00061095,120]
[355796873,1741567853646,-540.66,0.00061095,120]
[355796874,1741567853656,-595.63,0.00061095,120]
[355796875,1741567853665,-1357.25,0.00061095,120]
[355796876,1741567853675,-2110.53739979,0.00061095,120]
[355796877,1741567853684,-624.7,0.00061095,120]
[355796878,1741567853694,-1943.17140446,0.00061095,120]
[355796879,1741567853704,-2363.12,0.00061095,120]
[355796880,1741567853714,-802.74,0.00061095,120]
[355796881,1741567853724,-994.93,0.00061095,120]
[355796882,1741567853734,-759.18,0.00061095,120]
[355796883,1741567853744,-2333.05,0.00061095,120]
[355796884,1741567853754,-706.48,0.00061095,120]
[355796885,1741567853765,-519.74,0.00061095,120]
[355796886,1741567853775,-621.88,0.00061095,120]
[355796887,1741567853785,-702.2,0.00061095,120]
[355796888,1741567853795,-661.14,0.00061095,120]
[355796889,1741567853807,-519.73,0.000632,7]
[355796890,1741567853817,-1042.93560376,0.00065,120]
[355796891,1741567853836,-1500.0,0.0006596,15]
[355796892,1741567853847,-1468.32556297,0.00066571,15]
[355796893,1741567853858,-1500.0,0.00066571,14]
[355796894,1741567853869,-596.3479,0.00066571,15]
[355796895,1741567853878,-161.905912,0.00069589,120]
[355796896,1741567853888,-1500.0,0.00070871,15]
[355796897,1741567853898,-2000.0,0.00071272,14]
[355796898,1741567853907,-2000.0,0.00078934,15]
[355796899,1741567853917,-433.11,0.000794,14]
[355796900,1741567853926,-2000.0,0.00079545,14]
[355796901,1741567853935,-1000.0,0.0008,120]
[355796902,1741567853945,-2000.0,0.00083845,60]
[355796903,1741567853955,-573.755254,0.00083845,120]
[355796904,1741567853965,-573.755254,0.00083845,120]
[355796905,1741567853975,-151.0,0.00084775,120]
[355796906,1741567853985,-151.38,0.000851,60]
[355796907,1741567853994,-2500.0,0.00086636,14]
[355796908,1741567854005,-2500.0,0.00094297,60]
[355796909,1741567854015,-5000.0,0.000945,120]
[355796910,1741567854024,-2500.0,0.00094908,14]
[355796911,1741567854034,-151.0,0.00095288,120]
[355796912,1741567854044,-2500.0,0.00099208,60]
[355796913,1741567854054,-1000.0,0.00099999,120]
[355796914,1741567854064,-999.0,0.001,120]
[355796915,1741567854073,-500.0,0.001,120]
[355796916,1741567854089,-2412.94030962,0.001,120]
[355796917,1741567854099,-1000.0,0.001,120]
[355796918,1741567854108,-161.905912,0.00103288,120]
[355796919,1741567854118,-3000.0,0.00104062,14]
[355796920,1741567854128,-3000.0,0.00111724,60]
[355796921,1741567854138,-3000.0,0.00112335,14]
[355796922,1741567854247,-3000.0,0.00116635,60]
[355796923,1741567854273,-346.49,0.001198,30]
[355796924,1741567854284,-1020.118209,0.0012,120]
[355796925,1741567854294,-3500.0,0.00123331,14]
[355796926,1741567854303,-10000.0,0.001245,120]
[355796927,1741567854314,-3500.0,0.00130993,60]
[355796928,1741567854323,-3500.0,0.00131604,14]
[355796929,1741567854336,-3500.0,0.00135904,60]
[355796930,1741567854346,-767.54256,0.00135904,120]
[355796931,1741567854357,-767.54256,0.00135904,120]
[355796932,1741567854367,-151.0,0.00135904,10]
[355796933,1741567854378,-161.905912,0.00136986,120]
[355796934,1741567854388,-167.5639618,0.00136986,120]
[355796935,1741567854399,-268.102328,0.00136986,120]
[355796936,1741567854409,-151.0,0.0013769,120]
[355796937,1741567854420,-151.0,0.0013769,120]
[355796938,1741567854431,-160.0,0.00138217,3]
[355796939,1741567854442,-2397.3784935,0.00139443,120]
[355796940,1741567854452,-153.0,0.00140786,120]
[355796941,1741567854463,-153.0,0.00140786,120]
[355796942,1741567854474,-153.0,0.00140786,120]
[355796943,1741567854485,-153.0,0.00140786,120]
[355796944,1741567854496,-210.716242,0.00140891,30]
[355796945,1741567854507,-210.716242,0.00140891,30]
[355796946,1741567854517,-701.132744,0.00140891,120]
[355796947,1741567854528,-701.132744,0.00140891,120]
[355796948,1741567854538,-514.0,0.00140891,120]
[355796949,1741567854548,-514.0,0.00140891,120]
[355796950,1741567854558,-514.0,0.00140891,120]
[355796951,1741567854568,-514.0,0.00140891,120]
[355796952,1741567854582,-514.0,0.00140891,120]
[355796953,1741567854592,-514.0,0.00140891,120]
[355796954,1741567854603,-514.0,0.00140891,120]
[355796955,1741567854613,-514.0,0.00140891,120]
[355796956,1741567854623,-514.0,0.00140891,120]
[355796957,1741567854633,-514.0,0.00140891,120]
[355796958,1741567854643,-514.0,0.00140891,120]
[355796959,1741567854653,-514.0,0.00140891,120]
[355796960,1741567854663,-514.0,0.00140891,120]
[355796961,1741567854674,-514.0,0.00140891,120]
[355796962,1741567854684,-153.0,0.00141317,120]
[355796963,1741567854694,-514.0,0.00141442,120]
[355796964,1741567854703,-514.0,0.00141442,120]
[355796965,1741567854713,-514.0,0.00141442,120]
[355796966,1741567854723,-514.0,0.00141442,120]
[355796967,1741567854733,-514.0,0.00141442,120]
[355796968,1741567854743,-514.0,0.00141442,120]
[355796969,1741567854752,-514.0,0.00141442,120]
[355796970,1741567854761,-514.0,0.00141442,120]
[355796971,1741567854771,-514.0,0.00141442,120]
[355796972,1741567854781,-514.0,0.00141442,120]
[355796973,1741567854791,-514.0,0.00141442,120]
[355796974,1741567854801,-514.0,0.00141442,120]
[355796975,1741567854815,-514.0,0.00141442,120]
[355796976,1741567854825,-251.538872,0.00141999,120]
[355796977,1741567854839,-828.562556,0.00141999,120]
[355796978,1741567854851,-828.562556,0.00141999,120]
[355796979,1741567854861,-268.102328,0.00144196,120]
[355796980,1741567854871,-4000.0,0.00144281,14]
[355796981,1741567854881,-10000.0,0.001445,120]
[355796982,1741567854891,-151.0,0.00145562,120]
[355796983,1741567854902,-177.42558,0.00146972,120]
[355796984,1741567854911,-151.0,0.00146972,120]
[355796985,1741567854921,-151.0,0.00146972,120]
[355796986,1741567854932,-475.565554,0.00146972,120]
[355796987,1741567854941,-475.565554,0.00146972,120]
[355796988,1741567854951,-160.0,0.00148196,4]
[355796989,1741567854960,-1621.458186,0.00148573,120]
[355796990,1741567854970,-1621.458186,0.00148573,120]
[355796991,1741567854979,-151.0,0.00148573,120]
[355796992,1741567854989,-151.0,0.00148573,120]
[355796993,1741567854999,-299.286773,0.00148573,120]
[355796994,1741567855008,-151.0,0.00148573,120]
[355796995,1741567855018,-151.0,0.00148573,120]
[355796996,1741567855027,-268.102328,0.00151406,120]
[355796997,1741567855037,-4000.0,0.00151942,120]
[355796998,1741567855047,-259.86,0.001521,120]
[355796999,1741567855056,-4000.0,0.00152553,14]
[355797000,1741567855066,-4000.0,0.00156853,120]
[355797001,1741567855075,-150.0,0.0015704,120]
[355797002,1741567855088,-540.0,0.0015704,120]
[355797003,1741567855097,-1944.0,0.0015704,120]
[355797004,1741567855106,-2273.0,0.0015704,120]
[355797005,1741567855116,-250.0,0.0015704,120]
[355797006,1741567855125,-152.197,0.0015704,120]
[355797007,1741567855135,-295.974,0.0015704,120]
[355797008,1741567855144,-194.926,0.0015704,120]
[355797009,1741567855153,-398.0,0.0015704,2]
[355797010,1741567855162,-160.0,0.00158175,5]
[355797011,1741567855172,-268.102328,0.00158616,120]
[355797012,1741567855181,-150.0,0.0016004,120]
[355797013,1741567855190,-540.0,0.0016004,120]
[355797014,1741567855200,-1944.0,0.0016004,120]
[355797015,1741567855209,-2273.0,0.0016004,120]
[355797016,1741567855218,-150.0,0.0016004,120]
[355797017,1741567855227,-150.0,0.0016004,120]
[355797018,1741567855237,-150.0,0.0016004,120]
[355797019,1741567855246,-150.0,0.0016004,120]
[355797020,1741567855255,-398.0,0.0016004,2]
[355797021,1741567855264,-150.0,0.0016304,120]
[355797022,1741567855274,-540.0,0.0016304,120]
[355797023,1741567855283,-1944.0,0.0016304,120]
[355797024,1741567855293,-2273.0,0.0016304,120]
[355797025,1741567855302,-150.0,0.0016304,120]
[355797026,1741567855312,-150.0,0.0016304,120]
[355797027,1741567855321,-150.0,0.0016304,120]
[355797028,1741567855332,-150.0,0.0016304,120]
[355797029,1741567855342,-398.0,0.0016304,2]
[355797030,1741567855351,-10000.0,0.001645,120]
[355797031,1741567855361,-268.102328,0.00165826,120]
[355797032,1741567855372,-150.0,0.0016604,120]
[355797033,1741567855382,-540.0,0.0016604,120]
[355797034,1741567855393,-1944.0,0.0016604,120]
[355797035,1741567855402,-2273.0,0.0016604,120]
[355797036,1741567855412,-150.0,0.0016604,120]
[355797037,1741567855423,-150.0,0.0016604,120]
[355797038,1741567855433,-398.0,0.0016604,2]
[355797039,1741567855443,-150.0,0.0016604,120]
[355797040,1741567855454,-4500.0,0.00166786,14]
[355797041,1741567855464,-1357.0,0.0016789,120]
[355797042,1741567855474,-160.0,0.00168155,6]
[355797043,1741567855484,-209.28658938,0.00168155,5]
[355797044,1741567855494,-150.0,0.0016904,120]
[355797045,1741567855504,-540.0,0.0016904,120]
[355797046,1741567855514,-1944.0,0.0016904,120]
[355797047,1741567855524,-2273.0,0.0016904,120]
[355797048,1741567855534,-150.0,0.0016904,120]
[355797049,1741567855544,-398.0,0.0016904,2]
[355797050,1741567855554,-150.0,0.0016904,120]
[355797051,1741567855563,-150.0,0.0017204,120]
[355797052,1741567855573,-540.0,0.0017204,120]
[355797053,1741567855586,-1944.0,0.0017204,120]
[355797054,1741567855596,-2273.0,0.0017204,120]